[Event "Saint Louis Norm Congress-GM 2022"]
[Site "Saint Louis"]
[Date "2022.05.22"]
[Round "6.1"]
[White "Stearman, Josiah"]
[Black "Ruiz Castillo, Joshua Daniel"]
[Result "*"]
[ECO "E15"]
[WhiteElo "2375"]
[BlackElo "2473"]
[Annotator "TA"]
[PlyCount "47"]
[EventDate "2022.05.20"]
[EventType "tourn"]
[EventCountry "USA"]
[SourceTitle "playchess.com"]
[Source "ChessBase"]
[SourceQuality "1"]
[TimeControl "5400+30"]

{[%evp 24,47,27,37,29,28,29,0,0,0,0,-5,-5,-6,-10,-6,0,-5,-20,-37,0,0,31,-37,-30,-58]} 1. d4 {[%emt 0:02:27]} Nf6 {[%emt 0:00:44]} 2. c4 {[%emt 0:00:05]} e6 {[%emt 0:00:00]} 3. Nf3 {[%emt 0:00:05]} b6 {[%emt 0:00:22]} 4. g3 {[%emt 0:00:05]} Ba6 {[%emt 0:00:03]} 5. b3 {[%emt 0:00:05]} Bb4+ {[%emt 0:00:04]} 6. Bd2 {[%emt 0:00:05]} Be7 {[%emt 0:00:02]} 7. Bg2 {[%emt 0:00:06]} O-O {[%emt 0:00:18]} 8. O-O {[%emt 0:00:44]} c6 {[%emt 0:00:03]} 9. Bc3 {[%emt 0:00:33]} d5 {[%emt 0:00:07]} 10. Ne5 {[%emt 0:00:05]} Nfd7 {[%emt 0:00:08]} 11. Nxd7 {[%emt 0:00:08]} Nxd7 {[%emt 0:00:06][%cal Bb8d7,Bd7f6,Bf6e4][%mdl 32]} 12. Nd2 {[%emt 0:00:06]} f5 {[%emt 0:02:32] is now more promising than 12...Rc8.} 13. a4 {[%emt 0:00:08][%cal Ba2a4,Ba4a5][%mdl 32]} Nf6 {[%emt 0:09:38] E15: Queen's Indian: 4 g3 sidelines, 4 g3 Ba6 and 4 g3 Bb7 early deviations.} 14. a5 {[%emt 0:01:18] [#]} Qd7 $146 {[%emt 0:16:09]} ({Predecessor:} 14... Bd6 15. Ra2 Qe7 16. Qa1 b5 17. c5 Bc7 18. b4 Bc8 19. Nf3 Ne4 20. Ne5 Bxe5 21. dxe5 Nxc3 22. Qxc3 {½-½ (31) Mchedlishvili,M (2586)-Zhigalko,S (2675) Dubai 2015}) 15. Bb2 {[%emt 0:05:18]} b5 {[%emt 0:04:34][%cal Rb5c4] The position is equal.} 16. c5 {[%emt 0:01:16]} b4 $1 {[%emt 0:00:05]} 17. Nf3 {[%emt 0:00:11]} Ne4 {[%emt 0:00:22]} 18. Ne5 {[%emt 0:00:08]} Qb7 {[%emt 0:00:58]} 19. Bxe4 {[%emt 0:06:53]} fxe4 {[%emt 0:03:00]} 20. Bc1 {[%emt 0:02:16]} Rf5 {[%emt 0:03:15]} 21. Bf4 {[%emt 0:04:13]} Raf8 {[%emt 0:03:21]} (21... g5 $5 {[%cal Rg5f4]} 22. Bc1 Bf6 $15) 22. Qd2 {[%emt 0:00:15]} Bd8 {[%emt 0:01:09]} (22... g5 $5 23. Be3 Bf6 $11) 23. Ng4 {[%emt 0:00:57]} (23. f3 $1 $14) 23... h5 $1 $15 {[%emt 0:03:29]} 24. Ne3 {[%emt 0:02:20] Weighted Error Value: White=0.14 (very precise) /Black=0.06 (flawless)} *

[Event "Saint Louis Norm Congress-GM 2022"]
[Site "Saint Louis"]
[Date "2022.05.22"]
[Round "6.2"]
[White "Belous, Vladimir"]
[Black "Daggupati, Balaji"]
[Result "1/2-1/2"]
[ECO "D20"]
[WhiteElo "2525"]
[BlackElo "2486"]
[Annotator "TA"]
[PlyCount "32"]
[EventDate "2022.05.20"]
[EventType "tourn"]
[EventCountry "USA"]
[SourceTitle "playchess.com"]
[Source "ChessBase"]
[SourceQuality "1"]
[TimeControl "5400+30"]

{[%evp 9,32,0,6,-31,-31,-30,-19,-29,-29,-27,-30,-30,-37,-37,-34,-49,0,-67,-29,-34,4,-51,-59,-59,-44]} 1. d4 {[%emt 0:00:30][%cal Bd2d4,Bd4d5][%mdl 32]} d5 {[%emt 0:00:02]} 2. c4 {[%emt 0:00:16]} dxc4 {[%emt 0:00:04]} 3. e4 {[%emt 0:00:06]} Nc6 {[%emt 0:00:04][%cal Bb8c6,Bc6e5,Be5g6][%mdl 32]} 4. d5 {[%emt 0:00:43]} Ne5 {[%emt 0:00:41]} 5. Bf4 {[%emt 0:00:31]} Ng6 $1 {[%emt 0:00:13]} 6. Be3 {[%emt 0:00:11] D20: Queen's Gambit Accepted: 3 e3 and 3 e4.} Nf6 {[%emt 0:00:34]} 7. Nc3 {[%emt 0:01:18]} e6 $1 {[%emt 0:00:06] Threatening ...exd5.} 8. Bxc4 {[%emt 0:12:36] The position is equal.} exd5 {[%emt 0:00:17]} 9. exd5 {[%emt 0:01:20]} Bd6 {[%emt 0:00:06]} 10. Nf3 {[%emt 0:00:13] Prevents Nh4.} O-O {[%emt 0:00:21]} 11. h3 {[%emt 0:00:08] Inhibits Ng4.} a6 {[%emt 0:02:32] [#]} 12. a4 $146 {[%emt 0:02:14] Against b5} ({Predecessor:} 12. O-O h6 13. a4 Re8 14. Re1 Bd7 15. Qb3 Qc8 16. Bf1 Nf4 17. Qc4 Ng6 18. Bd4 {1-0 (41) Belous,V (2524)-Rozum,I (2475) St Petersburg 2011}) 12... Qe7 {[%emt 0:10:57]} (12... Bf5 $15) 13. Qd4 {[%emt 0:03:12]} ({White should try} 13. O-O $1 $11) 13... Bd7 {[%emt 0:12:35]} 14. O-O {[%emt 0:00:47]} c5 {[%emt 0:01:07]} 15. dxc6 {[%emt 0:08:21]} (15. Qd1 $11) 15... Bxc6 $15 {[%emt 0:00:34]} 16. Nd5 {[%emt 0:00:06]} Nxd5 {[%emt 0:13:34] Weighted Error Value: White=0.23 (precise) /Black=0.12 (very precise)} 1/2-1/2

[Event "Saint Louis Norm Congress-GM 2022"]
[Site "Saint Louis"]
[Date "2022.05.22"]
[Round "6.3"]
[White "Brodsky, David"]
[Black "Schitco, Ivan"]
[Result "1/2-1/2"]
[ECO "C45"]
[WhiteElo "2484"]
[BlackElo "2484"]
[Annotator "TA"]
[PlyCount "98"]
[EventDate "2022.05.20"]
[EventType "tourn"]
[EventCountry "USA"]
[SourceTitle "playchess.com"]
[Source "ChessBase"]
[SourceQuality "1"]
[TimeControl "5400+30"]

{[%evp 14,98,-25,0,0,0,0,-46,0,0,0,0,0,0,-10,0,0,-7,0,-2,0,-9,0,-32,-14,-6,-10,-20,-16,-6,-11,-8,0,-88,0,0,0,0,51,62,62,58,58,60,55,0,20,13,18,23,55,0,0,0,0,0,0,0,0,0,0,0,0,0,0,0,0,0,0,0,0,0,0,0,0,0,0,0,0,0,0,0,0,0,0,0,0]} 1. e4 {[%emt 0:00:01][%cal Be2e4,Be4e5,Be5f6][%mdl 32]} e5 {[%emt 0:00:11]} 2. Nf3 {[%emt 0:00:04]} Nc6 {[%emt 0:00:20]} 3. d4 {[%emt 0:00:04]} exd4 {[%emt 0:00:12]} 4. Nxd4 {[%emt 0:00:04]} Nf6 {[%emt 0:00:21][%cal Bg8f6,Bf6d5,Bd5b6][%mdl 32]} 5. Nxc6 {[%emt 0:00:23]} bxc6 {[%emt 0:00:04]} 6. e5 {[%emt 0:00:04]} Qe7 {[%emt 0:00:14]} 7. Qe2 {[%emt 0:00:03]} Nd5 {[%emt 0:00:09]} 8. h4 {[%emt 0:00:03]} f6 {[%emt 0:01:59] C45: Scotch Game.} 9. c4 {[%emt 0:00:36]} Ba6 {[%emt 0:00:55]} 10. Rh3 {[%emt 0:00:12]} (10. exf6 $11 {should be considered.} Nxf6 11. Nc3) 10... Nb6 {[%emt 0:00:07] Black is slightly better.} (10... O-O-O $5 {[%cal Rd8e8]}) 11. exf6 {[%emt 0:01:01]} Qxe2+ {[%emt 0:00:29]} 12. Bxe2 {[%emt 0:00:04] Threatens to win with Re3+.} Bxc4 {[%emt 0:00:15]} 13. Re3+ {[%emt 0:00:14]} Kd8 {[%emt 0:05:22]} 14. fxg7 {[%emt 0:00:15]} Bxg7 {[%emt 0:00:08]} 15. Nc3 {[%emt 0:00:03] [#]} a5 $146 {[%emt 0:00:10]} ({Predecessor:} 15... Re8 16. Rxe8+ Kxe8 17. Bf4 Bxe2 18. Kxe2 d6 19. Kd3 Kd7 20. Re1 Rf8 21. g3 c5 {½-½ (55) Xu,Y (2516)-Xiu,D (2528) Liaocheng 2021}) 16. Re4 {[%emt 0:15:46]} Bxe2 {[%emt 0:11:48]} 17. Rxe2 {[%emt 0:07:44]} a4 {[%emt 0:05:10][%cal Oa4a3]} 18. a3 {[%emt 0:04:07]} Nc4 {[%emt 0:11:02]} 19. Bg5+ {[%emt 0:09:05]} Kc8 {[%emt 0:00:17][%cal Oc4b2] Black wants to play ...Nxb2!} 20. Re7 {[%emt 0:00:03]} Rg8 {[%emt 0:05:01]} 21. O-O-O $36 {[%emt 0:01:58][%mdl 2048] White fights for an advantage.} d6 {[%emt 0:03:08]} 22. Kc2 {[%emt 0:13:39]} h6 {[%emt 0:16:06]} 23. Bf4 {[%emt 0:04:37]} (23. Bc1 $1 $11) 23... Bxc3 {[%emt 0:11:10]} (23... Rb8 $17 24. Bc1 Bxc3 25. Kxc3 d5) 24. Kxc3 $11 {[%emt 0:00:21]} Nb6 {[%emt 0:00:05] Strongly threatening ...Nd5+.} 25. Bxh6 {[%emt 0:05:45] Hoping for Rg7.} Rxg2 {[%emt 0:02:35]} (25... Nd5+ $11 26. Rxd5 cxd5) 26. Re8+ $14 {[%emt 0:02:08]} Kd7 {[%emt 0:00:10]} 27. Rxa8 {[%emt 0:00:15] White is more active.} Nxa8 {[%emt 0:00:02][%mdl 4096] Endgame KRB-KRN} 28. Rh1 $1 {[%emt 0:05:38] Against Rh2} Rxf2 {[%emt 0:06:45]} 29. Be3 {[%emt 0:05:50]} (29. h5 $14) 29... Rf7 {[%emt 0:02:51]} (29... Rf3 $5 {[%cal Rf3e3]} 30. Kd4 Nb6 $11) 30. h5 {[%emt 0:00:42][%mdl 1024] White has compensation.} Nb6 {[%emt 0:04:41]} 31. h6 {[%emt 0:01:11]} Nd5+ {[%emt 0:01:22]} 32. Kd2 {[%emt 0:00:47]} ({Better is} 32. Kd4 $14 Rh7 33. Bd2) 32... Rh7 $11 {[%emt 0:01:47] The position is equal.} 33. Kd3 {[%emt 0:05:54]} Nxe3 {[%emt 0:02:42]} 34. Kxe3 {[%emt 0:00:05] KR-KR} Ke6 {[%emt 0:00:18]} 35. Kd4 {[%emt 0:03:27]} c5+ {[%emt 0:00:15]} 36. Kc4 {[%emt 0:01:28]} c6 {[%emt 0:01:01]} 37. b4 {[%emt 0:06:03]} axb3 {[%emt 0:01:31]} 38. Kxb3 {[%emt 0:00:06]} d5 {[%emt 0:00:30]} 39. Kc3 {[%emt 0:01:52]} Kd6 {[%emt 0:01:44]} 40. a4 {[%emt 0:04:50]} Kc7 {[%emt 0:01:14]} 41. a5 {[%emt 0:01:16]} Kb7 {[%emt 0:02:00] [#] White must now prevent ...Ka6.} 42. Kb3 $1 {[%emt 0:00:13]} Ka6 {[%emt 0:01:41]} 43. Ka4 {[%emt 0:00:04]} Ka7 {[%emt 0:01:55]} 44. Rh2 {[%emt 0:00:40]} Kb7 {[%emt 0:00:08]} 45. Rb2+ {[%emt 0:01:03]} Kc7 {[%emt 0:01:25]} 46. Rh2 {[%emt 0:00:26]} Kb7 {[%emt 0:00:52]} 47. Rb2+ {[%emt 0:00:04]} Ka7 {[%emt 0:00:05]} 48. Rh2 {[%emt 0:00:12]} Ka6 {[%emt 0:00:05]} 49. Rh1 {[%emt 0:00:11]} Ka7 {[%emt 0:01:37] Weighted Error Value: White=0.10 (very precise) /Black=0.08 (flawless)} 1/2-1/2

[Event "Saint Louis Norm Congress-GM 2022"]
[Site "Saint Louis"]
[Date "2022.05.22"]
[Round "6.4"]
[White "Repka, Christopher"]
[Black "Kavutskiy, Konstantin"]
[Result "1-0"]
[ECO "E73"]
[WhiteElo "2524"]
[BlackElo "2407"]
[Annotator "TA"]
[PlyCount "87"]
[EventDate "2022.05.20"]
[EventType "tourn"]
[EventCountry "USA"]
[SourceTitle "playchess.com"]
[Source "ChessBase"]
[SourceQuality "1"]
[TimeControl "5400+30"]

{[%evp 13,87,25,23,32,27,29,17,17,46,23,53,45,47,44,60,29,29,22,30,15,19,17,35,0,51,50,76,0,115,111,121,100,114,60,72,61,172,164,181,224,250,219,225,225,462,451,544,507,501,483,479,423,509,513,473,531,763,767,746,437,761,758,744,727,687,444,463,471,461,464,437,438,1388,1337,1380,1253]} 1. d4 {[%emt 0:03:05]} Nf6 {[%emt 0:07:29]} 2. c4 {[%emt 0:01:00]} g6 {[%emt 0:00:32]} 3. Nc3 {[%emt 0:00:05]} Bg7 {[%emt 0:00:06]} 4. e4 {[%emt 0:00:04]} d6 {[%emt 0:00:06]} 5. Be2 {[%emt 0:00:03]} O-O {[%emt 0:01:12]} 6. h4 {[%emt 0:00:03]} c5 {[%emt 0:02:28] The main line 6...c5 scores better than 6...h5.} 7. d5 {[%emt 0:01:08]} b5 {[%emt 0:00:48]} 8. cxb5 {[%emt 0:00:06] E73: King's Indian: Averbakh Variation without 6...c5.} a6 {[%emt 0:00:08]} 9. a4 {[%emt 0:00:02]} axb5 {[%emt 0:01:07]} 10. Bxb5 {[%emt 0:00:04] The position is equal.} Ba6 {[%emt 0:00:10]} 11. Bd2 {[%emt 0:00:03]} Bxb5 {[%emt 0:01:09]} 12. axb5 {[%emt 0:00:04]} Rxa1 {[%emt 0:00:07]} 13. Qxa1 {[%emt 0:00:02]} Qb6 {[%emt 0:00:23]} 14. Nf3 {[%emt 0:00:16]} Nbd7 {[%emt 0:01:15]} 15. O-O {[%emt 0:00:04]} Rb8 {[%emt 0:02:45]} 16. Qa6 {[%emt 0:00:03]} Ne8 {[%emt 0:11:21]} 17. Ra1 {[%emt 0:00:04]} Kf8 {[%emt 0:06:31] [#]} 18. Ra5 $146 {[%emt 0:00:04]} ({Predecessor:} 18. h5 Nc7 19. Qa4 Ra8 20. Qd1 Rxa1 21. Qxa1 Ne5 22. h6 Nxf3+ 23. gxf3 Bxc3 24. Bxc3 Qxb5 {1-0 (31) Vachier Lagrave,M (2751)-Svidler,P (2714) Saint Louis 2021}) 18... Qb7 {[%emt 0:05:19]} (18... Nc7 $11 19. Qa7 (19. Qxb6 Nxb6 20. Ra7 Bxc3 $11) 19... Rb7 20. Qxb6 Nxb6) 19. Qc6 $14 {[%emt 0:03:12]} Nb6 $1 {[%emt 0:06:31] [#]} 20. b3 {[%emt 0:00:07]} ({White should try} 20. Bc1 $1 $16) 20... Nc7 {[%emt 0:05:34]} (20... Bxc3 $11 21. Bxc3 f5) 21. Na4 {[%emt 0:01:36]} Nc8 {[%emt 0:05:48]} 22. Qd7 {[%emt 0:01:37][%cal Oa5a6] Ra6! is the strong threat. White is much more active.} Nb6 {[%emt 0:04:04] [#]} 23. Qg4 {[%emt 0:08:37]} (23. Nxb6 $1 $16 Qxb6 24. h5) 23... Qc8 {[%emt 0:04:51]} 24. Qf4 {[%emt 0:00:26][%cal Oh4h5]} h6 {[%emt 0:05:48] White now steadily converts the win.} (24... Kg8 $1 $14) 25. Bc3 {[%emt 0:07:21]} Nd7 {[%emt 0:01:54]} 26. h5 $1 {[%emt 0:01:58] Threatens to win with hxg6.} Kg8 {[%emt 0:10:51]} 27. hxg6 $40 {[%emt 0:00:54][%mdl 128] Black is in trouble.} fxg6 {[%emt 0:00:09]} 28. Qg4 {[%emt 0:01:50]} Bxc3 $2 {[%emt 0:06:13]} (28... Qe8 29. Ra7 (29. Bxg7 Kxg7 30. Nc3 Nf6 $16) 29... h5) 29. Nxc3 $18 {[%emt 0:00:03] White is clearly winning.} Kg7 {[%emt 0:00:11]} 30. Nh4 {[%emt 0:07:07]} Ne5 {[%emt 0:00:46]} 31. Qxc8 {[%emt 0:09:15]} Rxc8 {[%emt 0:00:06]} 32. b6 {[%emt 0:00:09] Hoping for Ra7.} Ne8 {[%emt 0:00:06]} 33. Ra7 {[%emt 0:00:03]} Kf7 {[%emt 0:01:24]} 34. f4 {[%emt 0:00:04]} Nd3 {[%emt 0:03:20]} 35. f5 {[%emt 0:00:07]} Ne5 {[%emt 0:00:06]} 36. fxg6+ {[%emt 0:00:38]} Nxg6 {[%emt 0:00:46]} (36... Kf6 $142 37. Kf2 Rb8) 37. Nxg6 {[%emt 0:01:07]} Kxg6 {[%emt 0:00:06]} 38. Rxe7 {[%emt 0:00:23][%mdl 4096] Endgame KRN-KRN} Rb8 {[%emt 0:00:15]} 39. b7 {[%emt 0:00:13]} Kf6 {[%emt 0:00:40]} 40. Rh7 {[%emt 0:02:46]} ({Less strong is} 40. Re6+ Kf7 41. e5 (41. Rxh6 Rxb7 42. Rh7+ Ng7 $16) 41... Rxb7 $18) 40... Ng7 {[%emt 0:00:40] Strongly threatening ...Kg6.} 41. Rxh6+ {[%emt 0:02:06]} Ke5 {[%emt 0:00:07]} 42. Nb5 {[%emt 0:00:11]} Kxe4 {[%emt 0:02:17]} (42... Rxb7 $142 43. Nxd6 Rxb3) 43. Nxd6+ {[%emt 0:01:54]} Kxd5 {[%emt 0:00:08] [#]} 44. Rh8 $3 {[%emt 0:00:03][%mdl 512] Weighted Error Value: White=0.30/Black=0.28 (precise)} 1-0

[Event "Saint Louis Norm Congress-GM 2022"]
[Site "Saint Louis"]
[Date "2022.05.22"]
[Round "6.5"]
[White "Park, Evan"]
[Black "Matviishen, Viktor"]
[Result "*"]
[ECO "C70"]
[WhiteElo "2431"]
[BlackElo "2517"]
[Annotator "TA"]
[PlyCount "40"]
[EventDate "2022.05.20"]
[EventType "tourn"]
[EventCountry "USA"]
[SourceTitle "playchess.com"]
[Source "ChessBase"]
[SourceQuality "1"]
[TimeControl "5400+30"]

{[%evp 9,40,37,51,19,14,18,22,12,24,29,19,22,28,18,40,25,35,22,31,40,42,45,29,12,45,21,31,10,11,0,0,0,17]} 1. e4 {[%emt 0:00:02]} e5 {[%emt 0:00:06]} 2. Nf3 {[%emt 0:00:05]} Nc6 {[%emt 0:00:05]} 3. Bb5 {[%emt 0:00:02][%cal Bf1b5,Bb5a4,Ba4b3][%mdl 32]} a6 {[%emt 0:00:06]} 4. Ba4 {[%emt 0:00:02]} Bc5 {[%emt 0:00:07]} 5. O-O {[%emt 0:00:48]} Nge7 {[%emt 0:00:07]} 6. Nxe5 {[%emt 0:00:50] C70: Ruy Lopez: 3...a6 4 Ba4, Norwegian and Delayed Schliemann.} Nxe5 {[%emt 0:00:10]} 7. d4 {[%emt 0:00:01]} b5 {[%emt 0:00:15][%cal Oc5b6] [#] aiming for ...Bb6!} 8. Bb3 {[%emt 0:00:05]} Bxd4 {[%emt 0:00:07]} 9. Qxd4 {[%emt 0:00:04]} d6 {[%emt 0:00:05]} 10. Qd2 {[%emt 0:00:26]} c5 {[%emt 0:02:20][%cal Bc7c5,Bc5c4][%mdl 32] Hoping for ...c4.} 11. f4 {[%emt 0:01:22] [#]} c4 $146 {[%emt 0:01:11] Threatens to win with ...Ng4.} ({Predecessor:} 11... N5c6 12. c3 c4 13. Bc2 d5 14. f5 f6 15. Qf2 Bb7 16. exd5 Qxd5 17. Rd1 Qf7 {1-0 (29) Sychev,K (2553)-Indjic,A (2604) Chess.com INT 2022}) 12. fxe5 {[%emt 0:00:51]} Qb6+ {[%emt 0:00:03]} 13. Qe3 {[%emt 0:00:09]} Qxe3+ {[%emt 0:00:06]} 14. Bxe3 {[%emt 0:00:07][%cal Oe5d6]} dxe5 {[%emt 0:00:04] [#]} 15. Bxc4 $1 {[%emt 0:08:14]} bxc4 {[%emt 0:00:02]} 16. Nc3 {[%emt 0:01:31]} Bd7 {[%emt 0:34:26]} 17. Rad1 {[%emt 0:09:18]} Bc6 {[%emt 0:01:40]} 18. Bc5 {[%emt 0:05:21]} f6 {[%emt 0:05:29] The position is equal.} 19. b4 {[%emt 0:02:18]} (19. Rd6 $5 {[%cal Rd6e6]} Kf7 20. Rfd1 $11) 19... cxb3 $1 {[%emt 0:02:11]} 20. axb3 {[%emt 0:01:03]} Rc8 {[%emt 0:02:24] Weighted Error Value: White=0.10 (very precise) /Black=0.06 (flawless)} *

[Event "Saint Louis Norm Congress-GM 2022"]
[Site "Saint Louis"]
[Date "2022.05.22"]
[Round "7.1"]
[White "Matviishen, Viktor"]
[Black "Stearman, Josiah"]
[Result "0-1"]
[ECO "D20"]
[WhiteElo "2517"]
[BlackElo "2375"]
[Annotator "TA"]
[PlyCount "72"]
[EventDate "2022.05.20"]
[EventType "tourn"]
[EventCountry "USA"]
[SourceTitle "playchess.com"]
[Source "ChessBase"]
[SourceQuality "1"]
[TimeControl "5400+30"]

{[%evp 15,72,0,30,0,0,0,10,17,30,18,30,21,22,25,36,37,40,38,133,-127,-116,-126,-126,-213,-232,-252,-255,-262,-215,-250,-200,-204,-207,-256,-204,-193,-200,-274,-274,-596,-593,-575,-522,-551,-564,-596,-578,-623,-595,-737,-702,-827,-761,-775,-834,-835,-830,-797,-433]} 1. d4 {[%emt 0:00:02] Fier,A} d5 {[%emt 0:00:08]} 2. c4 {[%emt 0:00:06]} dxc4 {[%emt 0:00:06]} 3. e3 {[%emt 0:00:07]} e5 {[%emt 0:01:10]} 4. Bxc4 {[%emt 0:00:06]} exd4 {[%emt 0:00:24]} 5. exd4 {[%emt 0:00:05]} Bd6 {[%emt 0:00:29]} 6. Nf3 {[%emt 0:00:16]} Nf6 {[%emt 0:00:06]} 7. O-O {[%emt 0:00:08]} O-O {[%emt 0:00:07]} 8. Nc3 {[%emt 0:00:22]} h6 {[%emt 0:01:43]} 9. Qc2 {[%emt 0:08:55] D20: Queen's Gambit Accepted: 3 e3 and 3 e4.} (9. Ne5 $5 {[%cal Rd1b3]}) 9... Nc6 {[%emt 0:02:33]} 10. h3 {[%emt 0:00:14] Against Bg4} Nb4 {[%emt 0:01:48]} 11. Qb1 {[%emt 0:00:06] The position is equal.} c6 {[%emt 0:00:39] [#]} 12. Bxh6 $1 {[%emt 0:00:07]} gxh6 {[%emt 0:00:53]} 13. Qg6+ $1 {[%emt 0:00:05]} Kh8 {[%emt 0:00:02]} 14. Qxh6+ {[%emt 0:00:07]} Nh7 {[%emt 0:01:40] ...Qf6 is the strong threat.} 15. Ne4 {[%emt 0:00:09][%mdl 1024] Inhibits Qf6. Hoping for Nfg5. White has compensation.} Be7 {[%emt 0:00:16][%cal Bd6e7,Be7g5,Bg5f6,Bf6e5][%mdl 32] Prevents Nfg5.} 16. Ne5 $1 {[%emt 0:00:10]} Nd5 {[%emt 0:12:57] [#]} ({Black should try} 16... Bf5 $14 17. Qf4 Bxe4 18. Qxe4 Nd5) 17. Ng3 $146 {[%emt 1:23:09][%mdl 8192]} (17. f4 $1 $16 {[%cal Oe4g5] Black must now prevent Ng5!} Bf5 18. Ng3) ({Predecessor:} 17. f4 Bf5 18. Ng5 Kg8 19. g4 Qb6 20. gxf5 Qxd4+ 21. Rf2 Nxg5 22. fxg5 Bc5 23. f6 Qxf2+ 24. Kh1 Nxf6 25. gxf6 Qg3 26. Bd3 Rfd8 27. Qh7+ Kf8 28. Qxf7# {1-0 (28) Fier,A (2589)-Semcesen,D (2480) Koge 2014 EXT 2015 [Fier,A]}) 17... Bg5 $17 {[%emt 0:01:20]} 18. Qh5 {[%emt 0:00:01] [#]} Be6 {[%emt 0:00:26]} 19. Bxd5 {[%emt 0:02:50]} (19. Bd3 $2 Ndf6 20. Qd1 Qxd4 $19) (19. Rad1 $17) 19... Qxd5 $19 {[%emt 0:00:36]} (19... cxd5 20. f4 Bf6 21. f5 $15) 20. Rae1 {[%emt 0:00:17]} Rg8 {[%emt 0:01:36]} (20... Qxa2 21. f4 Rg8 22. fxg5 Rxg5 23. Qh4 $14) (20... Qxd4 $2 21. Nf3 Qg7 22. Nxg5 Qxg5 23. b3 $19) 21. Re4 {[%emt 0:00:33]} Bf6 {[%emt 0:00:58]} ({Not} 21... Qxa2 $2 22. h4 Be7 23. Nf5 $19) 22. Rfe1 {[%emt 0:00:41]} Rg5 {[%emt 0:01:47]} 23. Qf3 {[%emt 0:00:01]} Rag8 {[%emt 0:01:03]} ({Stronger than} 23... Bxe5 24. dxe5 Rd8 25. Qa3) 24. Kh1 {[%emt 0:01:54]} c5 {[%emt 0:01:34]} ({Don't blunder} 24... Bxe5 $2 25. dxe5 Qxa2 26. Qc3 $19) 25. h4 {[%emt 0:01:39] [#]} R5g7 {[%emt 0:01:02]} 26. Nh5 {[%emt 0:00:47]} Bxe5 {[%emt 0:00:29]} 27. Nxg7 {[%emt 0:00:29]} (27. dxe5 {is tougher.} Rg4 28. Nf4 Qxa2 29. Nxe6 Qxe6 30. Rxg4 Rxg4 31. g3) 27... Bxg7 {[%emt 0:00:13] This bishop pair is nice. Black is clearly winning.} 28. dxc5 {[%emt 0:00:04]} Nf6 {[%emt 0:00:36]} 29. Rf4 {[%emt 0:00:35]} Qxf3 {[%emt 0:00:35]} 30. Rxf3 {[%emt 0:00:01]} Ng4 {[%emt 0:00:24]} 31. Rd1 {[%emt 0:00:04]} Bxb2 {[%emt 0:00:21]} 32. g3 {[%emt 0:01:09]} Rc8 {[%emt 0:00:20]} 33. Rd2 {[%emt 0:00:50] [#]} Rxc5 $1 {[%emt 0:00:18]} 34. Rfd3 {[%emt 0:00:13]} (34. Kg2 Bc1) 34... Bc1 {[%emt 0:00:37]} 35. Re2 {[%emt 0:00:00]} Bd5+ {[%emt 0:00:06]} 36. Kg1 {[%emt 0:00:00]} Be3 {[%emt 0:00:25] Weighted Error Value: White=0.48/Black=0.17 (very precise)} 0-1